Cogmind - Beta 13 @@@ ROGUE MODE // 2024.04.14 @ 05:32:50 Player: Miwa Result: Self-destructed Performance ------------- Evolutions (3) 1500 Regions Visited (9) 1800 Robots Destroyed (27) 135 Value Destroyed (1590) 1590 Prototype IDs (2) 40 Alien Tech Used (0) 0 Bonus (981) 981 TOTAL SCORE: 6046 Bonus ------- High Alert Combat Kills 11 Follower Combat Kills 70 Entered Garrisons 400 Used RIF Installer 500 Cogmind --------- Core Integrity 694/700 Matter 290/300 Energy 265/265 System Corruption 0% Temperature Cool (0) Movement Flying (112) Ox1 Location -7/Factory Parts ------- > --- POWER (1) -------- Improved Ion Engine > --- PROPULSION (3) --- Flight Unit Improved Flight Unit > --- UTILITY (7) ------ Small Storage Unit Signal Interpreter Transmission Jammer Relay Coupler [Sentry] (23) > --- WEAPON (2) ------- (None) > --- INVENTORY (8) ---- Authchip [R/Combat] Relay Coupler [Swarmer] (42) Relay Coupler [Grunt] (29) Relay Coupler [Sentry] (21) Relay Coupler [Sentry] (23) Peak State ------------ > --- POWER ------------ Light Nuclear Core > --- PROPULSION ------- Flight Unit Improved Flight Unit Improved Flight Unit > --- UTILITY ---------- Small Storage Unit Weight Redist. System Experimental Sensor Array Signal Interpreter Transmission Jammer > --- WEAPON ----------- Gauss Rifle Scythe > --- INVENTORY -------- Light Deuterium Engine Flight Unit Flight Unit Flight Unit Improved Flight Unit Machine Analyzer [Rating: 35] Favorites ----------- Power Light Nuclear Core Engine Ion Engine Power Core Light Nuclear Core Propulsion Flight Unit Wheel Compact Wheel Flight Unit Flight Unit Utility Small Storage Unit Device Weight Redist. System Storage Small Storage Unit Processor Signal Interpreter Hackware Relay Coupler [Sentry] Weapon Scythe Energy Gun Small Laser Energy Cannon Beam Cannon Ballistic Gun Gauss Rifle Special Weapon Enhanced Flamer Slashing Weapon Scythe Special Melee Weapon Datajack Build | -11 -10 -10 -10 -9 -8 -8 -8 -8 -7 ------- Run | Yrd Mat Min Exi Min Mat Gar Mat Gar Fac Slots Evolved 6 | . . . . . 4 . . . 2 Power . | . . . . . . . . . . Propulsion 1 | . . . . . 1 . . . . Utility 5 | . . . . . 3 . . . 2 Weapon . | . . . . . . . . . . Parts Attached 49 | 6 10 2 . 1 8 15 . 7 . Power 11 | 1 3 . . . 2 3 . 2 . Engine 7 | 1 3 . . . 1 1 . 1 . Core 4 | . . . . . 1 2 . 1 . Reactor . | . . . . . . . . . . Propulsion 21 | 2 5 1 . . 3 7 . 3 . Treads . | . . . . . . . . . . Leg . | . . . . . . . . . . Wheel 3 | 2 1 . . . . . . . . Hover . | . . . . . . . . . . Flight 18 | . 4 1 . . 3 7 . 3 . Utility 8 | 1 1 . . . 3 2 . 1 . Device 4 | . 1 . . . 2 1 . . . Storage 1 | 1 . . . . . . . . . Processor 1 | . . . . . 1 . . . . Hackware 2 | . . . . . . 1 . 1 . Protection . | . . . . . . . . . . Artifact . | . . . . . . . . . . Weapon 9 | 2 1 1 . 1 . 3 . 1 . Energy Gun 3 | 2 . . . . . . . 1 . Energy Cannon 1 | . 1 . . . . . . . . Ballistic Gun 1 | . . . . . . 1 . . . Ballistic Cannon . | . . . . . . . . . . Launcher . | . . . . . . . . . . Special Weapon 1 | . . 1 . . . . . . . Impact Weapon . | . . . . . . . . . . Slashing Weapon 2 | . . . . . . 2 . . . Piercing Weapon . | . . . . . . . . . . Special Melee Weapon 1 | . . . . 1 . . . . . Unidentified Prototypes 2 | . . . . . 2 . . . . Parts Lost 14 | . . 1 . . . 7 . 5 1 Power 3 | . . . . . . 2 . 1 . Propulsion 6 | . . 1 . . . 1 . 3 1 Utility 3 | . . . . . . 2 . 1 . Weapon 2 | . . . . . . 2 . . . Highest Loss Streak 4 | . . 1 . . . 4 . 4 1 To Critical Strikes . | . . . . . . . . . . Average Slot Usage (%) 89 | . 95 98 100 100 91 86 90 81 57 Engine 6 | . 14 14 14 14 2 1 . 1 7 Core 4 | . . . . . 6 6 9 7 . Wheel 1 | . 6 . . . . . . . . Flight 25 | . 21 26 28 28 24 27 27 26 19 Device 15 | . 9 14 14 14 21 21 18 10 7 Storage 10 | . 14 14 14 14 9 9 9 9 7 Processor 5 | . . . . . 9 9 9 9 7 Hackware 1 | . . . . . . . 9 9 7 Energy Gun 5 | . 17 14 14 1 . . . . . Energy Cannon 2 | . 10 7 . . . . . . . Special Weapon 2 | . . 6 14 14 9 . . . . Slashing Weapon 4 | . . . . . . 8 9 8 . Special Melee Weapon 1 | . . . . 12 9 . . . . Naked Turns . | . . . . . . . . . . Heaviest Build 18 | 12 14 14 13 13 15 18 14 18 13 Greatest Support 26 | 26 26 14 14 14 20 20 14 14 13 Greatest Overweight (x) 1 | . . . . . . 1 . 1 1 Average Overweight (x) . | . . . . . . . . . . Largest Inventory Capacity 8 | 8 8 8 8 8 8 8 8 8 8 Average Capacity 7 | 7 8 8 8 8 8 8 8 8 8 Most Carried 8 | 4 8 8 8 8 8 8 8 8 5 Average Carried 7 | 2 6 7 8 7 7 7 8 7 5 Final Capacity 8 | 8 8 8 8 8 8 8 8 8 8 Final Carried 8 | 4 8 8 8 8 8 8 8 5 5 Class Distribution -------------------- 57% | Scavenger-Mutant 42% | Mutant Dominant Class ---------------- Scavenger-Mutant | -10/Materials Scavenger-Mutant | -10/Mines Scavenger-Mutant | -10/Exiles Scavenger-Mutant | -9/Mines Mutant | -8/Materials Scavenger-Mutant | -8/Garrison Scavenger-Mutant | -8/Materials Mutant | -8/Garrison Mutant | -7/Factory Resources | -11 -10 -10 -10 -9 -8 -8 -8 -8 -7 ----------- Run | Yrd Mat Min Exi Min Mat Gar Mat Gar Fac Matter Collected 715 | 224 136 . . . 110 190 10 45 . Remotely . | . . . . . . . . . . Salvage Created 898 | . 320 . . . 35 414 . 129 . Parts 66 | . 24 . . . 1 27 . 14 . Haulers Intercepted 1 | . 1 . . . . . . . . Recyclers Shooed . | . . . . . . . . . . Parts Field Recycled . | . . . . . . . . . . Retrieved Matter . | . . . . . . . . . . Parts Self-Destructed . | . . . . . . . . . . Prevented . | . . . . . . . . . . Kills | -11 -10 -10 -10 -9 -8 -8 -8 -8 -7 ------- Run | Yrd Mat Min Exi Min Mat Gar Mat Gar Fac Combat Hostiles Destroyed 23 | . 7 . . . 1 11 . 4 . Melee 13 | . . . . . . 9 . 4 . Guns 9 | . 7 . . . . 2 . . . Classes Destroyed 7 | . 4 . . . . 2 . 1 . Hauler 1 | . 1 . . . . . . . . Watcher 3 | . 3 . . . . . . . . Swarmer 7 | . 3 . . . . 2 . 2 . Cutter 2 | . . . . . . 2 . . . Grunt 11 | . 4 . . . 1 6 . . . Sentry 2 | . . . . . . 1 . 1 . Hunter 1 | . . . . . . . . 1 . Best Kill Streak 4 | . 4 . . . 1 3 . 2 . Combat Bots Only 4 | . 4 . . . 1 3 . 2 . Max Kills in Single Turn 2 | . 2 . . . 1 1 . 1 . Gunslinging . | . . . . . . . . . . Exploded . | . . . . . . . . . . Melee 1 | . . . . . . 1 . 1 . Uniques/NPCs Destroyed . | . . . . . . . . . . Combat | -11 -10 -10 -10 -9 -8 -8 -8 -8 -7 -------- Run | Yrd Mat Min Exi Min Mat Gar Mat Gar Fac Hostile Shots Fired 202 | . 35 4 . . 5 94 . 55 9 Missed 72 | . 8 1 . . 2 40 . 16 5 Damage Taken 1598 | . 299 43 . . 46 736 . 448 26 Core 574 | . 81 12 . . 18 277 . 180 6 Absorbed by Shields 78 | . . . . . . 52 . 26 . Regen/Repaired (Parts) 16 | . 16 . . . . . . . . Core Remaining (%) 58 | 100 . . . 62 . . . 13 . Volleys Fired 59 | . 31 1 . . 6 21 . . . Largest 2 | . 2 1 . . 1 1 . . . Hottest 100 | . 100 60 . . 80 80 . . . Shots Fired 90 | . 62 1 . . 6 21 . . . Gun 62 | . 46 . . . . 16 . . . Cannon 17 | . 16 1 . . . . . . . Launcher . | . . . . . . . . . . Special 11 | . . . . . 6 5 . . . Kinetic 16 | . . . . . . 16 . . . Thermal 74 | . 62 1 . . 6 5 . . . Explosive . | . . . . . . . . . . Electromagnetic . | . . . . . . . . . . Robot Hit Streak 11 | . 8 . . . 5 11 . . . Robot Miss Streak 5 | . 5 1 . . 2 1 . . . Penetration Max . | . . . . . . . . . . Secondary Targets . | . . . . . . . . . . Shots Hit Robots 86 | . 37 . . . 5 36 . 8 . Core Hits 38 | . 19 . . . . 15 . 4 . Critical Kills . | . . . . . . . . . . Critical Parts Destroyed . | . . . . . . . . . . Critical Strikes 4 | . . . . . 1 2 . 1 . Burn 1 | . . . . . 1 . . . . Sever 3 | . . . . . . 2 . 1 . Melee Attacks 133 | . . . . . . 82 . 51 . Impact . | . . . . . . . . . . Slashing 133 | . . . . . . 82 . 51 . Piercing . | . . . . . . . . . . Sneak Attacks 1 | . . . . . . 1 . . . Combat Hostiles 1 | . . . . . . 1 . . . Follow-up Attacks . | . . . . . . . . . . Damage Inflicted 1743 | . 474 . . . 56 952 . 261 . Guns 561 | . 315 . . . . 246 . . . Cannons 159 | . 159 . . . . . . . . Explosions . | . . . . . . . . . . Melee 911 | . . . . . . 650 . 261 . Ramming . | . . . . . . . . . . Kinetic 246 | . . . . . . 246 . . . Thermal 586 | . 474 . . . 56 56 . . . Explosive . | . . . . . . . . . . Electromagnetic . | . . . . . . . . . . Impact . | . . . . . . . . . . Slashing 911 | . . . . . . 650 . 261 . Piercing . | . . . . . . . . . . Highest Corruption . | . . . . . . . . . . Average Corruption . | . . . . . . . . . . Corruption Purged . | . . . . . . . . . . Corruption Blocked . | . . . . . . . . . . Overload Shots . | . . . . . . . . . . Overflow Damage 2 | . . . . . . . . 2 . Projectiles . | . . . . . . . . . . Explosions . | . . . . . . . . . . Melee 2 | . . . . . . . . 2 . Knockbacks . | . . . . . . . . . . Impact . | . . . . . . . . . . Kinetic . | . . . . . . . . . . Secondary . | . . . . . . . . . . Self-Inflicted Damage . | . . . . . . . . . . Shots . | . . . . . . . . . . Rammed . | . . . . . . . . . . Targets Rammed . | . . . . . . . . . . Kicked . | . . . . . . . . . . Crushed . | . . . . . . . . . . Highest Temperature 353 | . 353 22 . . 129 124 . . . Average Temperature 106 | . 132 12 . . 50 46 . . . Received Heat Transfer 579 | . 123 . . . 27 342 . 81 6 Effects 3 | . 3 . . . . . . . . Shutdowns 1 | . 1 . . . . . . . . Energy Bleed 2 | . 2 . . . . . . . . Siege Activations . | . . . . . . . . . . Robots Corrupted . | . . . . . . . . . . Combat Hostiles . | . . . . . . . . . . Parts Fried . | . . . . . . . . . . Impact Corruptions . | . . . . . . . . . . Robots Melted 1 | . . . . . 1 . . . . Combat Hostiles 1 | . . . . . 1 . . . . Parts Melted 1 | . 1 . . . . . . . . Heat Transferred 2018 | . 1058 . . . 560 400 . . . Parts Sabotaged . | . . . . . . . . . . Parts Stolen . | . . . . . . . . . . Parts Stripped . | . . . . . . . . . . Power Chain Reactions . | . . . . . . . . . . Alert | -11 -10 -10 -10 -9 -8 -8 -8 -8 -7 ------- Run | Yrd Mat Min Exi Min Mat Gar Mat Gar Fac Peak Influence 455 | . 269 31 . . 73 455 266 363 192 Initial 221 | . . 26 . . . 47 221 172 187 Average 176 | . 178 28 . . 37 224 225 285 187 Maximum Alert Level 2 | . 1 . . . . 2 1 1 . Low Security (%) 52 | 100 44 100 . 100 100 47 . 9 100 Level 1 44 | . 55 . . . . 44 100 90 . Level 2 2 | . . . . . . 8 . . . Level 3 . | . . . . . . . . . . Level 4 . | . . . . . . . . . . Level 5 . | . . . . . . . . . . High Security . | . . . . . . . . . . Max Security . | . . . . . . . . . . Squads Dispatched 3 | . . . . . 3 . . . . Investigation 2 | . . . . . 2 . . . . Extermination . | . . . . . . . . . . Reinforcement . | . . . . . . . . . . Assault . | . . . . . . . . . . Garrison 1 | . . . . . 1 . . . . Intercept . | . . . . . . . . . . Searches Triggered . | . . . . . . . . . . Construction Impeded . | . . . . . . . . . . Haulers Reinforced . | . . . . . . . . . . Active Scanning Responses . | . . . . . . . . . . Cargo Convoy Interrupts . | . . . . . . . . . . Stealth | -11 -10 -10 -10 -9 -8 -8 -8 -8 -7 --------- Run | Yrd Mat Min Exi Min Mat Gar Mat Gar Fac Distress Signals 3 | . 3 . . . . . . . . Communications Jammed . | . . . . . . . . . . Distress Signals . | . . . . . . . . . . Times Spotted 48 | . 14 2 . . 5 13 3 10 1 Peak Tracking Total 8 | . 8 6 . . 2 4 4 5 1 Tactical Retreats 3 | . 1 1 . . . . . 1 . Traps | -11 -10 -10 -10 -9 -8 -8 -8 -8 -7 ------- Run | Yrd Mat Min Exi Min Mat Gar Mat Gar Fac Traps Triggered 3 | . . . . . . 2 . 1 . Indirectly . | . . . . . . . . . . Trap Hack Attempts . | . . . . . . . . . . Triggered . | . . . . . . . . . . Disarmed . | . . . . . . . . . . Reprogrammed . | . . . . . . . . . . Reused . | . . . . . . . . . . Traps Extracted . | . . . . . . . . . . Installed . | . . . . . . . . . . Triggered . | . . . . . . . . . . Machines | -11 -10 -10 -10 -9 -8 -8 -8 -8 -7 ---------- Run | Yrd Mat Min Exi Min Mat Gar Mat Gar Fac Machines Disabled 4 | . . . . . . 3 . 1 . Max in Single Turn 1 | . . . . . . 1 . 1 . Garrison Relay 4 | . . . . . . 3 . 1 . Machines Repaired . | . . . . . . . . . . Machines Dismantled . | . . . . . . . . . . Machines Sabotaged . | . . . . . . . . . . Overloaded Fab Kills . | . . . . . . . . . . Hacking | -11 -10 -10 -10 -9 -8 -8 -8 -8 -7 --------- Run | Yrd Mat Min Exi Min Mat Gar Mat Gar Fac Machines Accessed 20 | . 9 . . 1 5 2 2 1 . Terminals 15 | . 8 . . . 3 2 1 1 . Fabricators . | . . . . . . . . . . Repair Stations 2 | . 1 . . . 1 . . . . Recycling Units . | . . . . . . . . . . Scanalyzers . | . . . . . . . . . . Garrison Access 2 | . . . . . 1 . 1 . . Total Hacks 58 | . 32 . . 1 14 3 6 2 . Successful 35 | . 24 . . 1 7 1 2 . . Failed 23 | . 8 . . . 7 2 4 2 . Catastrophic 3 | . 1 . . . . . 1 1 . Database Lockouts . | . . . . . . . . . . Manual 23 | . 16 . . . 3 . 4 . . Terminals 46 | . 30 . . . 7 3 4 2 . Fabricators . | . . . . . . . . . . Repair Stations 5 | . 2 . . . 3 . . . . Recycling Units . | . . . . . . . . . . Scanalyzers . | . . . . . . . . . . Garrison Access 6 | . . . . . 4 . 2 . . Terminal Hacks 18 | . 14 . . 1 2 1 . . . Record 4 | . 4 . . . . . . . . Robot Schematic 1 | . 1 . . . . . . . . Robot Analysis 1 | . 1 . . . . . . . . Open Door 1 | . . . . 1 . . . . . Level Access Points 1 | . 1 . . . . . . . . Emergency Access Points 1 | . 1 . . . . . . . . Alert Level 1 | . 1 . . . . . . . . Locate Traps 3 | . 3 . . . . . . . . Maintenance Status 1 | . 1 . . . . . . . . Hauler Manifests 1 | . . . . . 1 . . . . Zone Layout 2 | . 1 . . . 1 . . . . Security Stations 1 | . . . . . . 1 . . . Fabricator Hacks . | . . . . . . . . . . Repair Station Hacks 3 | . 2 . . . 1 . . . . Scan Component 2 | . 1 . . . 1 . . . . Repair 1 | . 1 . . . . . . . . Recycling Unit Hacks . | . . . . . . . . . . Scanalyzer . | . . . . . . . . . . Garrison Access Hacks 3 | . . . . . 1 . 2 . . Unlock Access 2 | . . . . . 1 . 1 . . Coupler Status 1 | . . . . . . . 1 . . Unauthorized Hacks 11 | . 8 . . . 3 . . . . Terminals 11 | . 8 . . . 3 . . . . Botnet 11 | . 8 . . . 3 . . . . Fabricators . | . . . . . . . . . . Repair Stations . | . . . . . . . . . . Recycling Units . | . . . . . . . . . . Scanalyzers . | . . . . . . . . . . Garrison Access . | . . . . . . . . . . Data Cores Recovered . | . . . . . . . . . . Used . | . . . . . . . . . . Hacking Detections 13 | . 6 . . . 3 1 2 1 . Full Trace Events 2 | . . . . . 2 . . . . Feedback Events . | . . . . . . . . . . Feedback Blocked . | . . . . . . . . . . Robot Schematics Acquired 1 | . 1 . . . . . . . . Robots Built . | . . . . . . . . . . Authchips . | . . . . . . . . . . Time . | . . . . . . . . . . Total Robot Build Rating . | . . . . . . . . . . Part Schematics Acquired . | . . . . . . . . . . Parts Built . | . . . . . . . . . . Authchips . | . . . . . . . . . . Time . | . . . . . . . . . . Total Part Build Rating . | . . . . . . . . . . Parts Repaired 1 | . 1 . . . . . . . . Time 26 | . 26 . . . . . . . . Parts Recycled . | . . . . . . . . . . Recycled Matter . | . . . . . . . . . . Retrieved Matter . | . . . . . . . . . . Retrieved Components . | . . . . . . . . . . Parts Scanalyzed . | . . . . . . . . . . Part Schematics Acquired . | . . . . . . . . . . Parts Damaged . | . . . . . . . . . . Bothacking | -11 -10 -10 -10 -9 -8 -8 -8 -8 -7 ------------ Run | Yrd Mat Min Exi Min Mat Gar Mat Gar Fac Used RIF Installer 1 | . . . . . . 1 . . . Robots Hacked . | . . . . . . . . . . Non-combat . | . . . . . . . . . . Combat . | . . . . . . . . . . Robot Hacks Applied . | . . . . . . . . . . Relay Couplers Released 16 | . . . . . . 12 . 4 . Machine Destruction 16 | . . . . . . 12 . 4 . Attached 2 | . . . . . . 1 . 1 . Fabnet Peak Effective % . | . . . . . . . . . . Robots Rewired . | . . . . . . . . . . Allies Hacked . | . . . . . . . . . . Hacks Repelled . | . . . . . . . . . . Allies | -11 -10 -10 -10 -9 -8 -8 -8 -8 -7 -------- Run | Yrd Mat Min Exi Min Mat Gar Mat Gar Fac Total Allies 3 | . . . . 3 . . . . . Largest Group 3 | . . . . 3 3 2 . . . Highest-Rated Group 82 | . . . . 82 82 51 . . . Highest-Rated Ally 31 | . . . . 31 31 31 . . . Total Orders . | . . . . . . . . . . Ally Attacks 18 | . . . . . 16 2 . . . Total Damage 272 | . . . . . 229 43 . . . Kills 3 | . . . . . 2 1 . . . Allies Corrupted . | . . . . . . . . . . Allies Melted . | . . . . . . . . . . Intel | -11 -10 -10 -10 -9 -8 -8 -8 -8 -7 ------- Run | Yrd Mat Min Exi Min Mat Gar Mat Gar Fac Robot Analysis Total 1 | . 1 . . . . . . . . Derelict Logs Recovered . | . . . . . . . . . . Drone Launches . | . . . . . . . . . . Drone Recoveries . | . . . . . . . . . . Exploration | -11 -10 -10 -10 -9 -8 -8 -8 -8 -7 ------------- Run | Yrd Mat Min Exi Min Mat Gar Mat Gar Fac Turns Passed 1920 | 56 436 88 66 76 220 635 15 314 14 Spaces Moved 2862 | 45 674 197 178 89 436 778 43 387 35 Core 1 | 1 . . . . . . . . . Treads . | . . . . . . . . . . Legs . | . . . . . . . . . . Wheels 118 | 44 74 . . . . . . . . Hover . | . . . . . . . . . . Flight 2743 | . 600 197 178 89 436 778 43 387 35 Fastest Speed 34 | 50 37 37 37 37 34 34 34 34 34 Average Speed 38 | 90 43 37 37 37 35 34 34 34 38 Slowest Speed 112 | 100 100 37 37 37 37 110 34 107 112 Overloaded Moves . | . . . . . . . . . . Propulsion Burnouts . | . . . . . . . . . . Robots Hopped . | . . . . . . . . . . Cave-ins Triggered . | . . . . . . . . . . Exploration Rate (%) 36 | 4 97 46 60 17 31 69 9 34 1 Regions Visited 9 Branch Regions 3 Pre-discovered Areas . | . . . . . . . . . . Known Exits Taken 2 | . . . . . 1 . 1 . . Unknown Exits Taken 5 | 1 1 1 1 1 . . . . . Scrap Searched . | . . . . . . . . . . Spaces Dug 53 | . . . . . . 32 . 21 . Terrain Destroyed 53 | . . . . . . 32 . 21 . Melee 53 | . . . . . . 32 . 21 . Projectile . | . . . . . . . . . . AOE . | . . . . . . . . . . Terrain Rammed . | . . . . . . . . . . Walls Destroyed . | . . . . . . . . . . Machines Disabled . | . . . . . . . . . . Actions | -11 -10 -10 -10 -9 -8 -8 -8 -8 -7 --------- Run | Yrd Mat Min Exi Min Mat Gar Mat Gar Fac Total 3391 | 60 758 212 177 131 490 996 43 489 35 Wait 173 | . 17 4 . 38 28 59 . 27 . Move 2855 | 44 673 196 177 88 436 777 43 386 35 Hop . | . . . . . . . . . . Pick Up 51 | 10 16 5 . 2 7 10 . 1 . Fast Attach 4 | . . . . . . 2 . 2 . Attach 25 | 6 3 2 . . 5 6 . 3 . Detach 2 | . 1 . . . 1 . . . . Swap 20 | . 7 . . 1 3 7 . 2 . Drop 29 | . 10 4 . 2 4 5 . 4 . Fire 59 | . 31 1 . . 6 21 . . . Melee 133 | . . . . . . 82 . 51 . Ram . | . . . . . . . . . . Kick . | . . . . . . . . . . Crush . | . . . . . . . . . . Escape Stasis 40 | . . . . . . 27 . 13 . Rewire . | . . . . . . . . . . Trap . | . . . . . . . . . . Miscellaneous . | . . . . . . . . . . Route ------- -11/Scrapyard -10/Materials (discovered 4 exits: *Mat x3 / [*Min]) -10/Mines -10/Exiles -9/Mines -8/Materials -8/Garrison (discovered 2 exits: *Mat x2) -8/Materials -8/Garrison -7/Factory History --------- Turn | Location | Event 16 | -11/Scrapyard | Discovered new exit (range 16) 57 | -11/Scrapyard | Entered Materials 86 | -10/Materials | Identified exit to Materials 286 | -10/Materials | Repaired Flight Unit? 486 | -10/Materials | Discovered new exit (range 15) 493 | -10/Materials | Entered Mines 500 | -10/Mines | Received a Rocket Launcher from a helpful Derelict 512 | -10/Mines | Found a damaged Exp. Sensor Array with a note attached 514 | -10/Mines | Found Prototype Device 523 | -10/Mines | Assembled infested the area 541 | -10/Mines | A weapon hastily lodged in a ceiling crevice suddenly fell to the ground 565 | -10/Mines | Build established: Scavenger-Mutant 580 | -10/Mines | Discovered new exit (range 5) 581 | -10/Mines | Entered Exiles 591 | -10/Exiles | Met 8R-AWN 597 | -10/Exiles | Met EX-HEX 609 | -10/Exiles | Met EX-BIN 628 | -10/Exiles | Met EX-DEC 642 | -10/Exiles | Discovered new exit (range 12) 647 | -10/Exiles | Entered Mines 651 | -9/Mines | Met a Derelict who couldn't figure out how to use a Trap Extractor 675 | -9/Mines | Discovered new exit (range 5) 678 | -9/Mines | Received a Mining Laser from a helpful Derelict 723 | -9/Mines | Entered Materials 723 | -8/Materials | Accompanied by 3 allies 723 | -8/Materials | Evolved 4 slots: Propulsion x1, Utility x3 724 | -8/Materials | Identified Exp. Sensor Array 728 | -8/Materials | Led the pair of lost Derelicts to an unsafe place 928 | -8/Materials | Garrison activated, responded to threat 943 | -8/Materials | Identified exit to Garrison 943 | -8/Materials | Entered Garrison 943 | -8/Garrison | Accompanied by 2 allies 957 | -8/Garrison | Triggered checkpoint 1036 | -8/Garrison | Lost 4 parts (1p1n2w) 1041 | -8/Garrison | Garrison Relay disabled 1097 | -8/Garrison | Build established: Mutant 1213 | -8/Garrison | Triggered checkpoint 1314 | -8/Garrison | Discovered new exit (range 13) 1318 | -8/Garrison | Identified exit to Materials 1385 | -8/Garrison | Learned Materials security intel 1393 | -8/Garrison | Triggered checkpoint 1394 | -8/Garrison | Garrison Relay disabled 1422 | -8/Garrison | Core integrity fell below 50% 1521 | -8/Garrison | Triggered checkpoint 1554 | -8/Garrison | Installed Relay Interface Framework 1563 | -8/Garrison | Discovered exit to Materials (range 14) 1569 | -8/Garrison | Garrison Relay disabled 1578 | -8/Garrison | Entered Materials 1593 | -8/Materials | Identified exit to Garrison 1593 | -8/Materials | Entered Garrison 1624 | -8/Garrison | Garrison Relay disabled 1803 | -8/Garrison | Triggered checkpoint 1882 | -8/Garrison | Core integrity fell below 20% 1895 | -8/Garrison | Discovered new exit (range 10) 1898 | -8/Garrison | Identified exit to Factory 1907 | -8/Garrison | Entered Factory 1907 | -7/Factory | Evolved 2 slots: Utility x2 1914 | -7/Factory | Lost 4 parts (1p3n) 1921 | -7/Factory | Self-destructed Last Messages --------------- Acquired 10 matter. S-10 Pest destroyed. Acquired Imp. Ion Engine. Acquired 2 matter. Y-45 Defender Imp. Ion Engine severed. Acquired 18 matter. Imp. Flight Unit destroyed. Dropped Beam Rifle. Dropped Scythe. Imp. Flight Unit destroyed. EXIT=FOUND EXIT=IDENTIFIED: FACTORY Attempting to access garrison exit controls... RIF authorized. [Achievement: Infiltrator] PARAMETERS=UTILITY+2 LOCATION=FACTORY GOAL=ESCAPE Flight Unit destroyed. K-01 Serf cleans the Power Conduit. Map ----- +----------------------------------------------------+ | ???????????# #?????????????????? | | ???????????# #?????????????????? | | ???????????# #?????????????????? | | ???????????# #?????????????????? | | #####?#??### #?????????????????? | | # ? # #?????????????????? | | # """ """ # #?????????????????? | | # """ """ # #?????????????????? | | # """ """ # #?????????????????? | | # # #?????????????????? | | # """ """ # #?????????????????? | | # """ """ # #?????????????????? | | # """ """ + #?????????????????? | | # # #?????????????????? | | # """ """ # #?????????????????? | | # """ """ # #?????????????????? | | # """ """ # #?????????????????? | | # #######?????????????????? | | # ! #???????????????????????? | | # #?????????###???????????? | | ########+######### #???????????? | | ???????# #???????????? | | ???????# ! ?????????? | | ???????# #???????????? | | ?????#####+####### #???????????? | | ?# @ #??????###???????????? | | ?# k #????????????????????? | | ?# """"""""" #????????????????????? | | ?# #????????????????????? | | ?# ]= #????????????????????? | | ?# == #????????????????????? | | ?##############????????????????????? | | ???????????????????????????????????? | | ???????????????????????????????????? | | ???????????????????????????????????? | | ???????????????????????????????????? | | ???????????????????????????????????? | | ???????????????????????????????????? | | ???????????????????????????????????? | | ???????????????????????????????????? | | | | | | | | | | | | | | | | | | | | | +----------------------------------------------------+ Best States ------------- Heat Dissipation 34 Energy Generation 14 Energy Capacity 265 Matter Stores 300 Matter Capacity 300 Sight Range 16 Robot Scan Range 20 Terrain Scan Density 10 Jamming Range 12 Additional Mass Support 6 Evasion (%) 71 Relay Coupler Types 1 Relay Coupler Value 23 Authchip Count 1 Item Schematics ----------------- None Robot Schematics ------------------ O-16 Technician | -10/Materials | Hacked Fabricated ------------ Nothing Alien Tech Used ----------------- None Achievements -------------- Infiltrator Challenges ------------ None Game ------ Seed TiamatXenonGreatsword Manual? 0 Play Time 00:54:49 Cumulative 42.5 hours Start 2024.04.14 @ 03:54:08 End 2024.04.14 @ 05:32:50 Sessions 1 Manual Loads 0 Difficulty Rogue Special Mode None Game No. 53 Rogue 53 Adventurer 0 Explorer 0 Win Type - Total 0 Types 0/0/0/0/0/0/0/0/0 Lore% 27 Gallery% 34 Achievement% 31 Wizard Run 0 Options --------- Layout 1 ASCII 0 Keyboard 0 Movement Mouse Keybinds 0 Fullscreen 1 Font 28/SmallcapsGlow Map View 55x47 Zoom Use 0% Tactical HUD 0 Map Filters NONE Filters NONE Steam 1 RUN: f76f4f91-18e9-4387-883b-ec8ed0a721a8